bitfinex/quotes_BTCUSD_20250213
["timestamp","ask_amount","ask_price","bid_price","bid_amount"]
[1739417965029,0.153893,97470.0,97469.0,5.22768155]
[1739417965195,0.153893,97470.0,97469.0,4.96873255]
[1739417965596,0.359085,97470.0,97469.0,4.96173255]
[1739417965816,0.359085,97470.0,97469.0,4.95273255]
[1739417966019,0.359085,97470.0,97469.0,4.95573255]
[1739417966573,0.359085,97470.0,97469.0,4.95373255]
[1739417966875,0.359085,97470.0,97469.0,4.94873255]
[1739417967075,0.359085,97470.0,97469.0,4.95073255]
[1739417968894,0.35930866,97470.0,97469.0,4.95073255]
[1739417969092,0.35930866,97470.0,97469.0,4.93573255]
[1739417970983,0.35930866,97470.0,97469.0,4.53573255]
[1739417971187,0.35930866,97470.0,97469.0,4.98845722]
[1739417971681,0.35930866,97470.0,97469.0,4.58845722]
[1739417971912,0.35930866,97470.0,97469.0,4.98845722]
[1739417972118,0.35930866,97470.0,97469.0,4.96793822]
[1739417975120,0.35930866,97470.0,97469.0,4.81457822]
[1739417976108,0.35930866,97470.0,97469.0,4.93627822]
[1739417976733,0.35930866,97470.0,97469.0,3.10192322]
[1739417976945,0.35930866,97470.0,97469.0,6.09578922]
[1739417981224,0.35930866,97470.0,97469.0,6.1274991]
[1739417982724,0.35930866,97470.0,97469.0,6.1244991]
[1739417983130,0.35930866,97470.0,97469.0,6.1264991]
[1739417983502,0.35930866,97470.0,97469.0,6.1274991]
[1739417985385,0.35930866,97470.0,97469.0,6.1244991]
[1739417985586,0.35930866,97470.0,97469.0,6.1314991]
[1739417985926,0.35930866,97470.0,97469.0,6.1394991]
[1739417986317,0.35930866,97470.0,97469.0,6.1314991]
[1739417986811,0.35930866,97470.0,97469.0,6.1464991]
[1739417990091,0.20541566,97470.0,97469.0,6.1464991]
[1739417990623,0.35930866,97470.0,97469.0,6.8262991]
[1739417990851,0.35930866,97470.0,97469.0,6.8437561]
[1739417991021,0.35930866,97470.0,97469.0,6.7604081]
[1739417991545,0.35930866,97470.0,97469.0,6.7495141]
[1739417991719,0.35930866,97470.0,97469.0,6.7565141]
[1739417992384,0.35930866,97470.0,97469.0,6.7415141]
[1739417992757,0.35930866,97470.0,97469.0,6.7555141]
[1739417993112,0.35930866,97470.0,97469.0,6.7485141]
[1739417993281,0.35930866,97470.0,97469.0,6.7126171]
[1739417993870,0.35930866,97470.0,97469.0,3.1516331]
[1739417994072,0.35930866,97470.0,97469.0,3.1376331]
[1739417994471,0.35930866,97470.0,97469.0,3.1456331]
[1739417994878,0.35930866,97470.0,97469.0,3.1526331]
[1739417995062,0.15411666,97470.0,97469.0,3.1376331]
[1739417995627,0.15411666,97470.0,97469.0,3.1456331]
[1739417996049,0.15411666,97470.0,97469.0,3.1376331]
[1739417996255,0.35930866,97470.0,97469.0,3.1376331]
[1739417997501,0.35930866,97470.0,97469.0,3.1526331]
[1739417998884,0.35930866,97470.0,97469.0,3.1597331]
[1739418000049,0.205192,97470.0,97469.0,3.1597331]
[1739418000204,0.359085,97470.0,97469.0,3.1597331]
[1739418000399,0.359085,97470.0,97469.0,3.1447331]
[1739418000610,0.359085,97470.0,97469.0,3.1376331]
[1739418000812,0.359085,97470.0,97469.0,3.1456331]
[1739418001030,0.359085,97470.0,97469.0,3.1526331]
[1739418001246,0.359085,97470.0,97469.0,3.1306331]
[1739418001690,0.359085,97470.0,97469.0,3.1526331]
[1739418002223,0.359085,97470.0,97469.0,3.1376331]
[1739418002434,0.359085,97470.0,97469.0,3.1377331]
[1739418002623,0.359085,97470.0,97469.0,3.1447331]
[1739418002624,0.35930866,97470.0,97469.0,3.1447331]
[1739418003858,0.35930866,97470.0,97469.0,3.1527331]
[1739418004363,0.35930866,97470.0,97469.0,3.1447331]
[1739418004684,0.35930866,97470.0,97469.0,3.1527331]
[1739418004894,0.35930866,97470.0,97469.0,3.1597331]
[1739418005100,0.15411666,97470.0,97469.0,3.1597331]
[1739418005458,0.15411666,97470.0,97469.0,3.1447331]
[1739418005705,0.15411666,97470.0,97469.0,3.1597331]
[1739418006264,0.35930866,97470.0,97469.0,3.1597331]
[1739418006895,0.35930866,97470.0,97469.0,3.5115305]
[1739418007043,0.35930866,97470.0,97469.0,3.4965305]
[1739418007249,0.35930866,97470.0,97469.0,3.5185305]
[1739418007870,0.35930866,97470.0,97469.0,3.5035305]
[1739418008115,0.35930866,97470.0,97469.0,3.5185305]
[1739418010025,0.20541566,97470.0,97469.0,3.5185305]
[1739418010295,0.35930866,97470.0,97469.0,3.5185305]
[1739418010485,0.35930866,97470.0,97469.0,3.5115305]
[1739418010687,0.35930866,97470.0,97469.0,3.4965305]
[1739418011006,0.35930866,97470.0,97469.0,3.5115305]
[1739418011369,0.35930866,97470.0,97469.0,3.5035305]
[1739418011576,0.35930866,97470.0,97469.0,3.4965305]
[1739418011799,0.35930866,97470.0,97469.0,3.5185305]
[1739418012244,0.35930866,97470.0,97469.0,3.5035305]
[1739418012446,0.35930866,97470.0,97469.0,3.5185305]
[1739418013141,0.35930866,97470.0,97469.0,3.5115305]
[1739418013486,0.35930866,97470.0,97469.0,3.6718905]
[1739418013683,0.35930866,97470.0,97469.0,3.6568905]
[1739418014357,0.35930866,97470.0,97469.0,3.6718905]
[1739418014969,0.153893,97470.0,97469.0,3.6718905]
[1739418016032,0.359085,97470.0,97469.0,3.6718905]
[1739418020083,0.205192,97470.0,97469.0,3.6718905]
[1739418020222,0.359085,97470.0,97469.0,3.6718905]
[1739418025152,0.153893,97470.0,97469.0,3.6718905]
[1739418025391,0.15411666,97470.0,97469.0,3.6568905]
[1739418025597,0.15411666,97470.0,97469.0,3.6718905]
[1739418025837,0.15411666,97470.0,97469.0,3.6648905]
[1739418026070,0.15411666,97470.0,97469.0,3.6718905]
[1739418026310,0.35930866,97470.0,97469.0,3.6718905]
[1739418027063,0.35930866,97470.0,97469.0,3.6568905]
[1739418027209,0.35930866,97470.0,97469.0,3.6498905]
[1739418027436,0.35930866,97470.0,97469.0,3.6648905]
[1739418027646,0.35930866,97470.0,97469.0,3.6718905]
[1739418030020,0.20541566,97470.0,97469.0,3.6718905]
[1739418030287,0.20541566,97470.0,97469.0,3.6568905]
[1739418030521,0.20541566,97470.0,97469.0,3.6498905]
[1739418030724,0.20541566,97470.0,97469.0,3.6718905]
[1739418031406,0.35930866,97470.0,97469.0,3.6718905]
[1739418031966,0.35930866,97470.0,97469.0,3.5892905]
[1739418032211,0.35930866,97470.0,97469.0,3.2304931]
[1739418032930,0.35930866,97470.0,97469.0,3.2084931]
[1739418033185,0.35930866,97470.0,97469.0,3.2234931]
[1739418033403,0.35930866,97470.0,97469.0,3.2304931]
[1739418035145,0.153893,97470.0,97469.0,3.2304931]
[1739418035599,0.359085,97470.0,97469.0,3.2234931]
[1739418035811,0.359085,97470.0,97469.0,3.2304931]
[1739418036029,0.359085,97470.0,97469.0,3.2154931]
[1739418036263,0.359085,97470.0,97469.0,3.2304931]
[1739418036907,0.35930866,97470.0,97469.0,3.2304931]
[1739418037583,0.35930866,97470.0,97469.0,3.2154931]
[1739418037828,0.35930866,97470.0,97469.0,3.2304931]
[1739418038081,0.35930866,97470.0,97469.0,3.2234931]
[1739418038497,0.35930866,97470.0,97469.0,3.2304931]
[1739418038722,0.35930866,97470.0,97469.0,3.2234931]
[1739418038941,0.35930866,97470.0,97469.0,3.5892903]
[1739418039160,0.35930866,97470.0,97469.0,3.5742903]
[1739418039379,0.35930866,97470.0,97469.0,3.5892903]
[1739418039593,0.35930866,97470.0,97469.0,3.5962903]
[1739418039810,0.35930866,97470.0,97469.0,3.5812903]
[1739418040026,0.20541566,97470.0,97469.0,3.5812903]
[1739418040263,0.20541566,97470.0,97469.0,3.5962903]
[1739418041100,0.35930866,97470.0,97469.0,3.5962903]
[1739418044758,0.35930866,97470.0,97469.0,3.5822903]
[1739418045172,0.35930866,97470.0,97469.0,3.5742903]
[1739418045407,0.35930866,97470.0,97469.0,3.5892903]
[1739418045718,0.15411666,97470.0,97469.0,3.5892903]
[1739418046940,0.35930866,97470.0,97469.0,3.5892903]
[1739418049974,0.205192,97470.0,97469.0,3.5892903]
[1739418050171,0.359085,97470.0,97469.0,3.5892903]
[1739418050742,0.359085,97470.0,97469.0,3.5360903]
[1739418050944,0.359085,97470.0,97469.0,3.5430903]
[1739418052184,0.359085,97470.0,97469.0,3.5280903]
[1739418052396,0.359085,97470.0,97469.0,3.5360903]
[1739418052607,0.359085,97470.0,97469.0,3.5430903]
[1739418052810,0.359085,97470.0,97469.0,3.5280903]
[1739418053115,0.359085,97470.0,97469.0,3.5430903]
[1739418055058,0.153893,97470.0,97469.0,3.5430903]
[1739418055459,0.153893,97470.0,97469.0,3.5360903]
[1739418055677,0.153893,97470.0,97469.0,3.5430903]
[1739418055854,0.153893,97470.0,97469.0,3.5360903]
[1739418056032,0.153893,97470.0,97469.0,3.1622931]
[1739418056234,0.153893,97470.0,97469.0,3.1772931]
[1739418056235,0.359085,97470.0,97469.0,3.1772931]
[1739418056679,0.359085,97470.0,97469.0,3.1622931]
[1739418058083,0.359085,97470.0,97469.0,3.1692931]
[1739418058298,0.359085,97470.0,97469.0,3.1842931]
[1739418059426,0.35930866,97470.0,97469.0,3.1842931]
[1739418060029,0.20541566,97470.0,97469.0,3.1842931]
[1739418060241,0.35930866,97470.0,97469.0,3.1771931]
[1739418062012,0.35930866,97470.0,97469.0,3.3046931]
[1739418063608,0.35930866,97470.0,97469.0,3.2896931]
[1739418064358,0.35930866,97470.0,97469.0,3.2826931]
[1739418064563,0.35930866,97470.0,97469.0,3.2896931]
[1739418064961,0.35930866,97470.0,97469.0,3.3046931]
[1739418065273,0.15411666,97470.0,97469.0,3.3046931]
[1739418065488,0.35930866,97470.0,97469.0,3.3117931]
[1739418065814,0.00930866,97470.0,97469.0,3.3117931]
[1739418066070,0.14266718,97470.0,97469.0,5.2071823]
[1739418066392,0.12161522,97470.0,97469.0,6.6049823]
[1739418066592,0.205183,97474.0,97472.0,0.15]
[1739418066842,0.15393112,97474.0,97473.0,0.28421353]
[1739418067000,0.15393112,97474.0,97473.0,0.43926682]
[1739418067228,0.15393112,97474.0,97473.0,2.51378682]
[1739418067785,0.15393112,97474.0,97473.0,4.65094494]
[1739418068064,0.15393112,97474.0,97473.0,4.69966494]
[1739418068505,0.15393112,97474.0,97473.0,4.70666494]
[1739418068928,0.15393112,97474.0,97473.0,4.60406994]
[1739418069164,0.23013112,97474.0,97473.0,4.19155094]
[1739418069425,0.23013112,97474.0,97473.0,4.59155094]
[1739418069648,0.23013112,97474.0,97473.0,4.58255094]
[1739418069898,0.23013112,97474.0,97473.0,4.57303194]
[1739418070131,0.23013112,97474.0,97473.0,4.459108]
[1739418070361,0.23013112,97474.0,97473.0,4.51021494]
[1739418070929,0.23013112,97474.0,97473.0,4.47869594]
[1739418071120,0.23013112,97474.0,97473.0,4.45217694]
[1739418071349,0.23013112,97474.0,97473.0,4.39561994]
[1739418071547,0.55813112,97474.0,97473.0,4.39861994]
[1739418071752,0.55813112,97474.0,97473.0,4.39061994]
[1739418071953,0.55813112,97474.0,97473.0,4.37010094]
[1739418072158,0.55813112,97474.0,97473.0,4.33306294]
[1739418072459,0.55835478,97474.0,97473.0,4.29202494]
[1739418074153,0.55835478,97474.0,97473.0,4.26950594]
[1739418074368,0.55835478,97474.0,97473.0,4.22646794]
[1739418074592,0.55835478,97474.0,97473.0,4.18642994]
[1739418074799,0.55835478,97474.0,97473.0,4.18842994]
[1739418075227,0.55835478,97474.0,97473.0,4.14739194]
[1739418076448,0.48215478,97474.0,97473.0,4.10635394]
[1739418076642,0.48215478,97474.0,97473.0,4.08583494]
[1739418076847,0.48215478,97474.0,97473.0,4.06531594]
[1739418079930,0.48215478,97474.0,97473.0,4.02427794]
[1739418081364,0.48215478,97474.0,97473.0,3.98323994]
[1739418081931,0.48215478,97474.0,97473.0,3.94220194]
[1739418082180,0.48215478,97474.0,97473.0,4.41412394]
[1739418084234,0.48215478,97474.0,97473.0,4.41423044]
[1739418084798,0.48215478,97474.0,97473.0,2.49218544]
[1739418085007,0.48215478,97474.0,97473.0,6.40920844]
[1739418085290,0.48215478,97474.0,97473.0,5.96885344]
[1739418086798,0.48215478,97474.0,97473.0,5.89565344]
[1739418089834,0.48215478,97474.0,97473.0,5.85567644]
[1739418090039,0.48215478,97474.0,97473.0,5.65406444]
[1739418092303,0.48215478,97474.0,97473.0,5.62140544]
[1739418095167,0.48215478,97474.0,97473.0,5.65314566]
[1739418095375,0.48215478,97474.0,97473.0,4.27627166]
[1739418096006,0.48215478,97474.0,97473.0,5.77627166]
[1739418098866,0.15415478,97474.0,97473.0,5.77627166]
[1739418099818,0.15415478,97474.0,97473.0,5.87877531]
[1739418100033,0.15415478,97474.0,97473.0,5.95397531]
[1739418100241,0.15415478,97474.0,97473.0,6.35425801]
[1739418100433,0.15415478,97474.0,97473.0,3.22503801]
[1739418100840,0.15415478,97474.0,97473.0,3.22203801]
[1739418101063,0.15415478,97474.0,97473.0,3.23013801]
[1739418101273,0.15415478,97474.0,97473.0,3.23213801]
[1739418101470,0.15415478,97474.0,97473.0,3.23113801]
[1739418101677,0.15415478,97474.0,97473.0,3.23713801]
[1739418102934,0.15415478,97474.0,97473.0,3.24913801]
[1739418105638,0.00022366,97474.0,97473.0,3.24913801]
[1739418107246,0.15411066,97474.0,97473.0,3.24913801]
[1739418109914,0.20518,97476.0,97473.0,3.24913801]
[1739418110124,0.153884,97476.0,97475.0,0.154]
[1739418110321,0.153884,97476.0,97475.0,0.88633616]
[1739418110946,0.153884,97476.0,97475.0,0.93183616]
[1739418111155,0.153884,97476.0,97475.0,1.00753616]
[1739418111367,0.153884,97476.0,97475.0,2.51353616]
[1739418112243,0.153884,97476.0,97475.0,2.50753616]
[1739418112521,0.153884,97476.0,97475.0,2.51453616]
[1739418112988,0.153884,97476.0,97475.0,2.5247778]
[1739418113403,0.153884,97476.0,97475.0,2.5357778]
[1739418113982,0.153884,97476.0,97475.0,2.5247778]
[1739418114180,0.153884,97476.0,97475.0,2.5397778]
[1739418115165,0.205174,97478.0,97475.0,2.5397778]
[1739418115376,0.153884,97476.0,97475.0,0.82039164]
[1739418115590,0.153884,97476.0,97475.0,0.90428433]
[1739418115798,0.153884,97476.0,97475.0,2.43601351]
[1739418116008,0.153884,97476.0,97475.0,2.42101351]
[1739418116360,0.153884,97476.0,97475.0,2.43601351]
[1739418116784,0.153884,97476.0,97475.0,2.42101351]
[1739418117013,0.153884,97476.0,97475.0,2.43601351]
[1739418118320,0.153884,97476.0,97475.0,2.58933351]
[1739418120051,0.205174,97478.0,97475.0,2.58933351]
[1739418120287,0.153882,97477.0,97476.0,0.12017359]
[1739418120503,0.153882,97477.0,97476.0,0.63312359]
[1739418120704,0.16698418,97477.0,97476.0,2.13312359]
[1739418121092,0.153882,97477.0,97476.0,2.13312359]
[1739418121474,0.153882,97477.0,97476.0,2.14012359]
[1739418122927,0.153882,97477.0,97476.0,2.15512359]
[1739418124504,0.153882,97477.0,97476.0,2.25762724]
[1739418125054,0.205174,97478.0,97476.0,2.25762724]
[1739418125282,0.15388,97478.0,97477.0,0.22327649]
[1739418125495,0.15388,97478.0,97477.0,0.74331649]
[1739418125703,0.16698493,97478.0,97477.0,2.24331649]
[1739418125895,0.15388,97478.0,97477.0,2.24331649]
[1739418127340,0.15388,97478.0,97477.0,2.25031649]
[1739418128009,0.15388,97478.0,97477.0,2.40363649]
[1739418128464,0.15388,97478.0,97477.0,2.41863649]
[1739418130050,0.205173,97479.0,97477.0,2.83863649]
[1739418130258,0.15408466,97490.0,97489.0,0.5]
[1739418130474,0.15412879,97490.0,97489.0,2.99065516]
[1739418130675,0.16730576,97490.0,97489.0,5.88135516]
[1739418130876,0.15412879,97490.0,97489.0,5.88135516]
[1739418131292,0.15412879,97490.0,97489.0,5.88535516]
[1739418131701,0.15412879,97490.0,97489.0,5.88135516]
[1739418131901,0.15412879,97490.0,97489.0,5.88835516]
[1739418133168,0.15412879,97490.0,97489.0,6.38835516]
[1739418133387,0.15412879,97490.0,97489.0,6.40335516]
[1739418135021,4.413e-05,97490.0,97489.0,6.40335516]
[1739418135263,0.15390513,97490.0,97489.0,6.40335516]
[1739418135461,0.15390513,97490.0,97489.0,6.41045516]
[1739418139970,0.205146,97492.0,97489.0,6.41045516]
[1739418140191,0.153858,97492.0,97491.0,0.10250365]
[1739418140401,0.153858,97492.0,97491.0,0.69300607]
[1739418140639,0.153858,97492.0,97491.0,2.19300607]
[1739418141692,0.153858,97492.0,97491.0,2.20000607]
[1739418142518,0.153858,97492.0,97491.0,2.21500607]
[1739418142950,0.358957,97505.0,97504.0,0.5]
[1739418143156,0.358957,97505.0,97504.0,0.8155869]
[1739418143366,0.37215222,97505.0,97504.0,1.3283869]
[1739418143578,0.358957,97505.0,97504.0,1.3283869]
[1739418143807,0.358957,97505.0,97504.0,1.68705]
[1739418144369,0.358957,97505.0,97504.0,3.23955]
[1739418144561,0.358957,97505.0,97504.0,7.447587]
[1739418144778,0.358957,97505.0,97504.0,7.574883]
[1739418144985,0.153838,97505.0,97504.0,7.587883]
[1739418145335,0.153838,97505.0,97504.0,7.574883]
[1739418145559,0.358957,97505.0,97504.0,7.574883]
[1739418145764,0.358957,97505.0,97504.0,7.587883]
[1739418146324,0.358957,97505.0,97504.0,7.574883]
[1739418146744,0.358957,97505.0,97504.0,7.587883]
[1739418147181,0.358957,97505.0,97504.0,7.741203]
[1739418148696,0.358957,97505.0,97504.0,3.39997]
[1739418148929,0.358957,97505.0,97504.0,3.41297]
[1739418149156,0.358957,97505.0,97504.0,3.40697]
[1739418149359,0.358957,97505.0,97504.0,3.41297]
[1739418149617,0.358957,97505.0,97504.0,3.39997]
[1739418149860,0.358957,97505.0,97504.0,3.41397]
[1739418150095,0.205119,97505.0,97504.0,3.42097]
[1739418150549,0.205119,97505.0,97504.0,3.40697]
[1739418151230,0.358957,97505.0,97504.0,3.90697]
[1739418151952,0.358957,97505.0,97504.0,3.92097]
[1739418152428,0.358957,97505.0,97504.0,3.90697]
[1739418152664,0.358957,97505.0,97504.0,3.95262807]
[1739418153136,0.358957,97505.0,97504.0,3.90697]
[1739418153398,0.358957,97505.0,97504.0,3.90897]
[1739418153626,0.358957,97505.0,97504.0,3.91597]
[1739418153865,0.358957,97505.0,97504.0,3.90097]
[1739418154106,0.358957,97505.0,97504.0,3.40097]
[1739418154418,0.358957,97505.0,97504.0,3.43263056]
[1739418155138,0.153838,97505.0,97504.0,3.41597]
[1739418155370,0.153838,97505.0,97504.0,3.40897]
[1739418155603,0.153838,97505.0,97504.0,3.40097]
[1739418155604,0.358957,97505.0,97504.0,3.40097]
[1739418156050,0.358957,97505.0,97504.0,3.40897]
[1739418156281,0.358957,97505.0,97504.0,3.41597]
[1739418156961,0.358957,97505.0,97504.0,3.4160765]
[1739418157155,0.35918066,97505.0,97504.0,3.4160765]
[1739418157364,0.35918066,97505.0,97504.0,3.44773959]
[1739418158139,0.35918066,97505.0,97504.0,3.43273959]
[1739418158336,0.35918066,97505.0,97504.0,3.44073959]
[1739418158955,0.35918066,97505.0,97504.0,3.43273959]
[1739418159176,0.35918066,97505.0,97504.0,3.44773959]
[1739418159377,0.35918066,97505.0,97504.0,3.45473959]
[1739418159779,0.35918066,97505.0,97504.0,3.42573959]
[1739418159978,0.20534266,97505.0,97504.0,3.44773959]
[1739418160180,0.20534266,97505.0,97504.0,3.44073959]
[1739418161165,0.35918066,97505.0,97504.0,3.42573959]
[1739418161597,0.35918066,97505.0,97504.0,3.44073959]
[1739418161992,0.35918066,97505.0,97504.0,3.44773959]
[1739418162600,0.35918066,97505.0,97504.0,3.45473959]
[1739418164291,0.35918066,97505.0,97504.0,3.43973959]
[1739418164495,0.35918066,97505.0,97504.0,3.42573959]
[1739418164713,0.35918066,97505.0,97504.0,3.44073959]
[1739418164931,0.35918066,97505.0,97504.0,3.44773959]
[1739418165136,0.35918066,97505.0,97504.0,3.43273959]
[1739418165344,0.35918066,97505.0,97504.0,3.44773959]
[1739418165783,0.15406166,97505.0,97504.0,3.43273959]
[1739418166178,0.15406166,97505.0,97504.0,3.44073959]
[1739418166338,0.15406166,97505.0,97504.0,3.44773959]
[1739418166741,0.35918066,97505.0,97504.0,3.44773959]
[1739418167718,0.35918066,97505.0,97504.0,3.44073959]
[1739418167953,0.35918066,97505.0,97504.0,3.42573959]
[1739418168161,0.35918066,97505.0,97504.0,3.44773959]
[1739418170133,0.205119,97505.0,97504.0,3.44773959]
[1739418170350,0.358957,97505.0,97504.0,3.44773959]
[1739418173323,0.358957,97505.0,97504.0,3.43749795]
[1739418175122,0.153838,97505.0,97504.0,3.43749795]
[1739418175329,0.153838,97505.0,97504.0,3.41549795]
[1739418175529,0.153838,97505.0,97504.0,3.43049795]
[1739418175736,0.153838,97505.0,97504.0,3.43749795]
[1739418176218,0.358957,97505.0,97504.0,3.43749795]
[1739418177719,0.358957,97505.0,97504.0,3.42249795]
[1739418177927,0.358957,97505.0,97504.0,3.42949795]
[1739418178134,0.358957,97505.0,97504.0,3.43649795]
[1739418178696,0.358957,97505.0,97504.0,3.42249795]
[1739418179085,0.358957,97505.0,97504.0,3.43749795]
[1739418179533,0.358957,97505.0,97504.0,3.42249795]
[1739418180072,0.205119,97505.0,97504.0,3.42249795]
[1739418180278,0.358957,97505.0,97504.0,3.42249795]
[1739418180482,0.358957,97505.0,97504.0,3.41549795]
[1739418180697,0.35918066,97505.0,97504.0,3.43649795]
[1739418181340,0.35918066,97505.0,97504.0,3.42249795]
[1739418181546,0.35918066,97505.0,97504.0,3.43649795]
[1739418181991,0.35918066,97505.0,97504.0,3.07083485]
[1739418182138,0.35918066,97505.0,97504.0,3.41550345]
[1739418182359,0.35918066,97505.0,97504.0,3.43650345]
[1739418183645,0.35918066,97505.0,97504.0,3.42950345]
[1739418183849,0.35918066,97505.0,97504.0,3.41550345]
[1739418184052,0.35918066,97505.0,97504.0,3.43450345]
[1739418184255,0.35918066,97505.0,97504.0,3.42750345]
[1739418184392,0.35918066,97505.0,97504.0,3.43450345]
[1739418184590,0.35918066,97505.0,97504.0,3.42250345]
[1739418184792,0.35918066,97505.0,97504.0,3.42750345]
[1739418185015,0.35918066,97505.0,97504.0,3.43450345]
[1739418186044,0.35918066,97505.0,97504.0,3.42250345]
[1739418188009,0.35918066,97505.0,97504.0,3.43450345]
[1739418197541,0.35918066,97505.0,97504.0,3.51750345]
[1739418198198,0.15406166,97505.0,97504.0,3.51750345]
[1739418199959,0.15406166,97505.0,97504.0,4.01750345]
[1739418202011,0.15406166,97505.0,97504.0,3.51750345]
[1739418203036,0.15406166,97505.0,97504.0,3.41750345]
[1739418206145,0.15406166,97505.0,97504.0,3.33450345]
[1739418207772,0.15406166,97505.0,97504.0,3.43450345]
[1739418212953,0.15406166,97505.0,97504.0,3.13450345]
[1739418222883,0.15406166,97505.0,97504.0,3.43450345]
[1739418224139,0.15406166,97505.0,97504.0,3.03450345]
[1739418224583,0.15406166,97505.0,97504.0,3.43450345]
[1739418225078,0.15406166,97505.0,97504.0,3.07583485]
[1739418225698,0.15406166,97505.0,97504.0,3.43450345]
[1739418228807,0.15406166,97505.0,97504.0,3.38800345]
[1739418229008,0.15406166,97505.0,97504.0,3.02933485]
[1739418231708,0.15406166,97505.0,97504.0,3.05492266]
[1739418243332,0.15406166,97505.0,97504.0,3.04782266]
[1739418243555,0.15406166,97505.0,97504.0,3.01615957]
[1739418245394,0.15406166,97505.0,97504.0,2.99715957]
[1739418245737,0.15406166,97505.0,97504.0,3.00915957]
[1739418246235,0.15406166,97505.0,97504.0,2.99715957]
[1739418246748,0.15406166,97505.0,97504.0,3.00415957]
[1739418247096,0.15406166,97505.0,97504.0,2.99715957]
[1739418247299,0.15406166,97505.0,97504.0,3.00215957]
[1739418248065,0.15406166,97505.0,97504.0,3.00915957]
[1739418249505,0.15406166,97505.0,97504.0,3.00215957]
[1739418249725,0.15406166,97505.0,97504.0,2.99715957]
[1739418249938,0.15406166,97505.0,97504.0,3.00215957]
[1739418250143,0.15406166,97505.0,97504.0,3.00615957]
[1739418251828,0.15406166,97505.0,97504.0,5.66655957]
[1739418252039,0.15406166,97505.0,97504.0,3.92303192]
[1739418252040,0.23556166,97505.0,97504.0,3.92303192]
[1739418252241,0.23556166,97505.0,97504.0,4.02303192]
[1739418252454,0.40856166,97505.0,97504.0,4.02303192]
[1739418252665,0.40856166,97505.0,97504.0,3.24431617]
[1739418252870,0.40856166,97505.0,97504.0,2.85060717]
[1739418253077,0.40856166,97505.0,97504.0,2.69412975]
[1739418253289,0.40856166,97505.0,97504.0,2.68512975]
[1739418253460,0.4218715,97505.0,97504.0,2.68512975]
[1739418253672,0.4218715,97505.0,97504.0,3.19992975]
[1739418254075,0.4218715,97505.0,97504.0,2.762952]
[1739418254271,0.4218715,97505.0,97504.0,2.74244]
[1739418254511,0.4228715,97505.0,97504.0,2.721928]
[1739418254848,0.4228715,97505.0,97504.0,2.702416]
[1739418255054,0.4228715,97505.0,97504.0,2.619368]
[1739418255262,0.4228715,97505.0,97504.0,2.34234625]
[1739418255487,0.53037515,97505.0,97504.0,2.397658]
[1739418255871,0.53037515,97505.0,97504.0,2.297658]
[1739418256415,0.53037515,97505.0,97504.0,1.997658]
[1739418256619,0.53037515,97505.0,97504.0,2.469434]
[1739418256833,0.53037515,97505.0,97504.0,2.448922]
[1739418257036,0.53037515,97505.0,97504.0,2.42841]
[1739418257210,0.53037515,97505.0,97504.0,2.387386]
[1739418257639,0.53037515,97505.0,97504.0,2.346362]
[1739418257844,0.53037515,97505.0,97504.0,2.32585]
[1739418259011,0.53037515,97505.0,97504.0,2.243802]
[1739418259423,0.53037515,97505.0,97504.0,2.22329]
[1739418259828,0.551196,97505.0,97504.0,2.202778]
[1739418260535,0.551196,97505.0,97504.0,0.471776]
[1739418260755,0.551196,97505.0,97504.0,3.453856]
[1739418261209,0.551196,97505.0,97504.0,3.228647]
[1739418261407,0.551196,97505.0,97504.0,3.187623]
[1739418261750,0.44869235,97505.0,97504.0,3.167111]
[1739418261981,0.44869235,97505.0,97504.0,3.526087]
[1739418262411,0.43538251,97505.0,97504.0,3.485063]
[1739418263254,0.31006166,97505.0,97504.0,3.56782118]
[1739418264220,0.33306166,97505.0,97504.0,3.56792778]
[1739418264611,0.66106166,97505.0,97504.0,3.56792778]
[1739418265040,0.6743715,97505.0,97504.0,3.56792778]
[1739418271743,0.6743715,97505.0,97504.0,0.72900878]
[1739418272164,0.6743715,97505.0,97504.0,4.43466078]
[1739418272386,0.6743715,97505.0,97504.0,3.97824278]
[1739418273214,0.6743715,97505.0,97504.0,3.94846178]
[1739418273393,0.6743715,97505.0,97504.0,3.83168578]
[1739418273768,0.6743715,97505.0,97504.0,3.78747478]
[1739418284157,0.6743715,97505.0,97504.0,0.72900878]
[1739418284512,0.6743715,97505.0,97504.0,3.98186078]
[1739418286436,0.6743715,97505.0,97504.0,3.84853078]
[1739418288089,0.6743715,97505.0,97504.0,3.83441378]
[1739418301215,0.6513715,97505.0,97504.0,3.83441378]
[1739418302088,0.6513715,97505.0,97504.0,3.48237478]
[1739418302506,0.6513715,97505.0,97504.0,2.96134878]
[1739418306791,0.6513715,97505.0,97504.0,3.01054878]
[1739418308351,0.6453715,97505.0,97504.0,3.01054878]
[1739418308565,0.6453715,97505.0,97504.0,3.01254878]
[1739418308773,0.6453715,97505.0,97504.0,3.01354878]
[1739418309223,0.6453715,97505.0,97504.0,3.01254878]
[1739418309442,0.6453715,97505.0,97504.0,3.01154878]
[1739418309633,0.6453715,97505.0,97504.0,3.01354878]
[1739418311178,0.6453715,97505.0,97504.0,2.68524178]
[1739418313168,0.6453715,97505.0,97504.0,2.68424178]
[1739418314403,0.6453715,97505.0,97504.0,2.68224178]
[1739418314609,0.6453715,97505.0,97504.0,2.68324178]
[1739418314804,0.6453715,97505.0,97504.0,2.68524178]
[1739418315321,0.6453715,97505.0,97504.0,0.78120878]
[1739418315465,0.6453715,97505.0,97504.0,4.32169478]
[1739418315882,0.6453715,97505.0,97504.0,4.01924178]
[1739418316083,0.6453715,97505.0,97504.0,3.99267478]
[1739418316587,0.6453715,97505.0,97504.0,3.88208078]
[1739418316838,0.6453715,97505.0,97504.0,3.79269878]
[1739418319809,0.63206166,97505.0,97504.0,3.57697678]
[1739418319944,0.6453507,97505.0,97504.0,3.46726478]
[1739418320843,0.6453507,97505.0,97504.0,3.35360778]
[1739418321428,0.6453507,97505.0,97504.0,3.11010678]
[1739418321616,0.6453507,97505.0,97504.0,3.03680378]
[1739418321839,0.6453507,97505.0,97504.0,2.91695878]
[1739418322249,0.6453507,97505.0,97504.0,2.80622278]
[1739418323800,0.6683507,97505.0,97504.0,2.26840678]
[1739418324003,0.7438507,97505.0,97504.0,2.20687078]
[1739418324228,0.7438507,97505.0,97504.0,2.1036006]
[1739418324401,0.7438507,97505.0,97504.0,2.67884566]
[1739418325038,0.7438507,97505.0,97504.0,2.35522706]
[1739418325251,0.7438507,97505.0,97504.0,2.61420306]
[1739418326108,0.7438507,97505.0,97504.0,2.57317906]
[1739418326458,0.6683507,97505.0,97504.0,2.57317906]
[1739418326663,0.6683507,97505.0,97504.0,2.53215506]
[1739418327076,0.6683507,97505.0,97504.0,2.49113106]
[1739418327426,0.6693507,97505.0,97504.0,2.36715]
[1739418327787,0.6693507,97505.0,97504.0,2.346638]